bitfinex/quotes_ETHUSD_20240719
["timestamp","ask_amount","ask_price","bid_price","bid_amount"]
[1721406807599,0.89218723,3493.7,3492.9,2.86294]
[1721406807961,0.89218723,3493.7,3492.7,2.86307]
[1721406808167,0.89218723,3493.7,3492.6,2.86318]
[1721406809395,0.89218723,3493.7,3492.6,2.86316]
[1721406811308,1.29158,3493.6,3492.3,2.86341]
[1721406811870,1.29158,3493.6,3492.4,2.86333]
[1721406812266,1.29158,3493.6,3492.2,2.86347]
[1721406812693,2.45260007,3493.5,3492.0,2.86364]
[1721406812899,0.67441801,3493.4,3492.1,2.8636]
[1721406813282,3.67441801,3493.4,3492.2,2.86346]
[1721406813796,3.69631808,3493.4,3491.5,2.2596]
[1721406814001,3.69631808,3493.4,3491.6,0.55]
[1721406814182,5.39631808,3493.4,3491.8,2.86377]
[1721406814382,1.17675981,3493.3,3491.8,2.86377]
[1721406814601,0.02190007,3493.2,3491.8,2.86377]
[1721406814990,1.17675981,3493.3,3491.9,2.86376]
[1721406815784,1.17675981,3493.3,3492.0,2.86363]
[1721406816305,1.17675981,3493.3,3492.1,2.86358]
[1721406816508,0.67519225,3493.2,3492.1,2.86358]
[1721406817576,3.67519225,3493.2,3492.1,2.86358]
[1721406818307,3.67519225,3493.2,3492.3,2.86337]
[1721406819287,3.67519225,3493.2,3491.6,2.649]
[1721406819288,3.0,3493.2,3492.0,2.86362]
[1721406819488,7.47,3493.3,3492.6,2.86313]
[1721406820421,7.47,3493.3,3492.4,2.86332]
[1721406820774,7.47,3493.3,3492.4,2.86335]
[1721406821012,7.47,3493.3,3492.0,2.86367]
[1721406821220,0.99007,3493.2,3492.1,2.86359]
[1721406821377,0.99007,3493.2,3492.0,2.86367]
[1721406822195,0.99007,3493.2,3491.9,2.86374]
[1721406822390,3.99007,3493.2,3491.9,2.86374]
[1721406822875,3.99007,3493.2,3492.0,2.86363]
[1721406823081,3.99007,3493.2,3492.1,3.436327]
[1721406823281,3.99007,3493.2,3491.9,2.8637]
[1721406823815,2.3364,3493.1,3491.6,2.864]
[1721406824117,0.02190007,3493.0,3491.4,0.1531062]
[1721406824533,0.02190007,3493.0,3491.4,3.0172662]
[1721406824737,1.06973701,3492.9,3491.4,3.0172662]
[1721406825630,1.06973701,3492.9,3491.4,5.8813762]
[1721406825807,1.06973701,3492.9,3491.4,3.0172162]
[1721406826292,1.06973701,3492.9,3491.6,2.86396]
[1721406826497,1.06973701,3492.9,3491.5,2.86406]
[1721406826700,0.82482065,3492.8,3491.5,2.86406]
[1721406827133,0.82482065,3492.8,3491.5,2.86402]
[1721406827829,0.82482065,3492.8,3491.6,2.86394]
[1721406828802,0.82482065,3492.8,3491.8,2.86381]
[1721406829542,0.82482065,3492.8,3491.9,2.86371]
[1721406829832,0.38248207,3492.7,3492.0,2.86368]
[1721406830007,0.38248207,3492.7,3491.7,2.8639]
[1721406830211,0.38248207,3492.7,3491.9,2.86374]
[1721406830553,0.38248207,3492.7,3491.8,2.86383]
[1721406831545,0.38248207,3492.7,3491.5,2.86405]
[1721406831732,0.38248207,3492.7,3491.5,3.16576562]
[1721406832060,0.38248207,3492.7,3491.7,2.86387]
[1721406832503,0.38248207,3492.7,3491.5,0.30171562]
[1721406832709,3.0,3493.0,3492.2,2.86352]
[1721406832908,5.3364,3493.1,3492.4,2.86331]
[1721406833110,7.47,3493.3,3492.0,2.2703]
[1721406833333,7.47,3493.3,3492.8,2.86298]
[1721406833519,7.47,3493.3,3492.6,2.86312]
[1721406834150,7.47,3493.3,3492.9,2.86292]
[1721406834376,7.47,3493.3,3493.1,2.86276]
[1721406834657,2.3085,3493.6,3493.1,2.86276]
[1721406834815,7.47,3493.9,3493.1,2.86276]
[1721406835173,7.47,3493.9,3492.7,0.0572522]
[1721406835328,7.47,3493.9,3493.5,2.86239]
[1721406835511,7.47,3493.9,3493.7,2.86226]
[1721406836126,7.47,3493.9,3492.8,2.649]
[1721406836326,7.47,3493.9,3493.2,2.86264]
[1721406836518,7.47,3493.9,3493.4,2.86249]
[1721406836740,7.47,3493.9,3493.0,2.86286]
[1721406836940,7.47,3493.9,3493.3,2.86255]
[1721406837141,7.47,3493.9,3493.2,2.86264]
[1721406837341,7.47,3493.9,3493.8,2.86221]
[1721406837527,2.3191,3494.5,3493.9,2.86211]
[1721406837528,9.7891,3494.5,3493.9,2.86211]
[1721406837722,9.7891,3494.5,3493.8,2.8622]
[1721406838119,9.7891,3494.5,3493.4,2.8625]
[1721406838956,9.7891,3494.5,3493.5,2.86245]
[1721406839119,11.03291,3494.5,3493.7,2.86227]
[1721406839600,9.7891,3494.5,3493.9,2.86207]
[1721406839880,7.47,3494.5,3494.0,2.86199]
[1721406840166,19.66,3494.9,3493.6,2.4566]
[1721406840318,7.47,3494.9,3494.4,2.86166]
[1721406840513,7.47,3495.3,3494.8,2.86139]
[1721406840718,7.47,3495.3,3494.9,2.8613]
[1721406841025,7.47,3495.8,3495.1,2.86114]
[1721406841224,7.47,3495.8,3494.7,2.86141]
[1721406841225,0.98753,3495.7,3494.7,2.86141]
[1721406841561,0.98753,3495.7,3494.6,2.86153]
[1721406842145,3.98753,3495.7,3494.8,2.86138]
[1721406842478,3.98753,3495.7,3494.7,2.86147]
[1721406842759,3.98753,3495.7,3494.6,2.86154]
[1721406842959,3.98753,3495.7,3495.0,2.86122]
[1721406843134,3.98753,3495.7,3494.8,2.86134]
[1721406843528,3.98753,3495.7,3494.9,2.86131]
[1721406843723,7.47,3495.8,3495.0,2.86122]
[1721406843950,7.47,3495.8,3494.6,0.531814]
[1721406844272,7.47,3495.8,3494.7,2.86143]
[1721406844624,7.47,3495.8,3495.1,2.86108]
[1721406844861,7.47,3495.8,3494.9,2.86128]
[1721406845038,0.747,3495.7,3494.8,2.86139]
[1721406845343,2.38100007,3495.6,3494.4,2.86169]
[1721406845547,2.3591,3495.6,3494.4,2.86169]
[1721406845750,2.3591,3495.6,3494.2,2.86182]
[1721406845930,5.3591,3495.6,3494.2,2.86182]
[1721406846143,1.35761,3495.5,3494.4,2.86166]
[1721406846456,1.35761,3495.5,3494.3,2.86179]
[1721406846457,0.02190007,3495.4,3494.3,2.86179]
[1721406847185,4.35761,3495.5,3494.3,2.86179]
[1721406847676,0.55,3495.4,3494.1,2.86196]
[1721406847958,0.55,3495.4,3494.2,2.86188]
[1721406848267,0.726671,3495.3,3494.2,2.86188]
[1721406848735,0.726671,3495.3,3494.0,2.86198]
[1721406848937,0.726671,3495.3,3493.3,6.148884]
[1721406848938,0.726671,3495.3,3493.4,2.86247]
[1721406849266,3.01750007,3495.2,3493.4,2.86247]
[1721406849563,3.0,3495.1,3493.9,2.86206]
[1721406849773,0.6722271,3495.0,3493.9,3.148316]
[1721406849955,0.6722271,3495.0,3493.9,0.286206]
[1721406850139,0.55,3494.9,3493.9,2.86212]
[1721406850328,0.55,3494.9,3493.7,2.86226]
[1721406851028,0.55,3494.9,3493.8,2.8622]
[1721406851864,0.55,3494.9,3493.6,2.86231]
[1721406852026,0.42222271,3494.8,3493.7,2.86223]
[1721406852225,0.42222271,3494.8,3493.9,2.86212]
[1721406853559,0.42222271,3494.8,3494.0,2.86204]
[1721406853724,8.1422271,3495.0,3494.2,2.86187]
[1721406853925,7.47,3495.0,3494.4,2.86168]
[1721406854133,7.47,3495.0,3494.2,2.86186]
[1721406854465,7.47,3495.0,3494.6,2.86155]
[1721406854765,7.47,3495.0,3494.5,2.86161]
[1721406854969,7.47,3495.0,3494.7,2.86147]
[1721406856034,7.47,3495.0,3494.6,0.572339]
[1721406856257,7.47,3495.0,3494.8,2.86132]
[1721406856579,7.47,3495.6,3495.1,2.86112]
[1721406856776,2.2915,3495.8,3495.1,2.86112]
[1721406857080,2.2915,3495.8,3495.2,2.86106]
[1721406857370,2.2915,3495.8,3494.8,2.86136]
[1721406857546,2.2915,3495.8,3495.1,2.86114]
[1721406857746,7.47,3496.0,3495.2,2.86106]
[1721406858078,7.47,3496.0,3495.0,2.86122]
[1721406858434,0.02190007,3495.9,3494.1,2.2855]
[1721406858629,0.02190007,3495.9,3494.3,2.86179]
[1721406858630,2.2655,3495.8,3494.3,2.86179]
[1721406858967,2.649,3495.6,3494.3,2.86179]
[1721406859154,2.3216,3495.4,3494.0,2.86199]
[1721406859368,2.3216,3495.4,3494.1,2.86189]
[1721406859874,0.55,3495.3,3494.2,2.86186]
[1721406860674,0.55,3495.3,3494.3,2.86174]
[1721406860888,0.58716,3495.2,3494.3,2.86174]
[1721406861176,0.58716,3495.2,3494.4,2.86171]
[1721406861336,9.7916,3495.4,3494.6,2.86149]
[1721406861532,9.7916,3495.4,3493.9,2.86206]
[1721406861830,9.7916,3495.4,3494.4,2.86166]
[1721406862197,9.7916,3495.4,3494.6,2.86148]
[1721406862344,9.7916,3495.4,3494.8,2.86138]
[1721406862528,7.47,3495.4,3494.6,2.86149]
[1721406863133,7.47,3495.4,3494.7,2.86146]
[1721406863537,7.47,3495.4,3494.8,2.86136]
[1721406863735,7.47,3495.4,3494.6,2.86149]
[1721406864045,7.47,3495.4,3494.7,2.86146]
[1721406864256,7.47,3495.4,3494.6,2.86149]
[1721406864455,7.47,3495.4,3494.8,2.86137]
[1721406864657,9.7615,3495.8,3495.0,2.86122]
[1721406864862,9.7615,3495.8,3495.2,2.86101]
[1721406865069,7.47,3495.8,3495.2,2.86103]
[1721406865255,7.47,3495.8,3494.8,2.86137]
[1721406865256,7.47,3495.8,3494.8,2.86132]
[1721406865570,7.47,3495.8,3495.0,2.86122]
[1721406865767,7.47,3495.8,3495.1,2.86112]
[1721406866862,7.47,3495.8,3494.6,2.603149]
[1721406866863,7.47,3495.8,3494.7,2.649]
[1721406867059,7.47,3495.8,3495.3,2.86092]
[1721406867260,7.47,3495.8,3495.5,2.86078]
[1721406867971,5.3227,3496.3,3495.5,2.86078]
[1721406867972,12.7927,3496.3,3495.5,2.86078]
[1721406868310,12.7927,3496.3,3495.4,2.86086]
[1721406868584,12.7927,3496.3,3495.6,2.86073]
[1721406868746,12.7927,3496.3,3495.4,2.86089]
[1721406868949,4.72613732,3496.2,3495.5,2.8608]
[1721406869149,4.72613732,3496.2,3495.3,2.86092]
[1721406869543,4.72613732,3496.2,3495.4,2.86088]
[1721406869746,4.72613732,3496.2,3495.5,2.8608]
[1721406870386,4.72613732,3496.2,3495.3,2.86092]
[1721406870553,1.75188373,3496.1,3495.3,2.86092]
[1721406871475,1.75188373,3496.1,3495.4,2.86089]
[1721406873075,1.75188373,3496.1,3495.2,2.86106]
[1721406873410,1.75188373,3496.1,3494.9,2.86126]
[1721406873613,0.55,3496.0,3495.0,2.86122]
[1721406873824,2.00445837,3496.0,3495.1,2.86114]
[1721406873991,2.00445837,3496.0,3495.0,2.86116]
[1721406874181,2.00445837,3496.0,3495.1,2.86113]
[1721406874380,0.50044584,3495.9,3494.9,5.72251]
[1721406874618,0.50044584,3495.9,3495.0,2.8612]
[1721406876021,0.50044584,3495.9,3495.1,2.86113]
[1721406876218,0.50044584,3495.9,3495.2,2.86105]
[1721406876420,3.0,3496.2,3495.5,2.86075]
[1721406876722,3.0,3496.2,3494.7,0.05721667]
[1721406876723,3.0,3496.2,3495.3,2.86092]
[1721406877121,9.7927,3496.3,3494.8,0.05721359]
[1721406877329,9.7927,3496.3,3495.6,2.86069]
[1721406877487,9.7927,3496.3,3494.9,2.8613]
[1721406877488,7.47,3496.3,3495.9,2.86048]
[1721406877826,12.19,3496.7,3495.9,2.86042]
[1721406877996,2.19694,3496.6,3495.9,2.86042]
[1721406878202,2.19694,3496.6,3496.0,2.8604]
[1721406878730,2.19694,3496.6,3495.8,5.72099]
[1721406879299,2.19694,3496.6,3495.9,2.86047]
[1721406879502,7.47,3496.8,3496.5,2.85992]
[1721406880290,7.47,3496.8,3496.6,2.8599]
[1721406880527,19.66,3497.4,3496.6,2.8599]
[1721406880837,19.66,3497.4,3496.3,2.86012]
[1721406881036,1.966,3497.3,3496.3,2.86012]
[1721406881188,1.966,3497.3,3496.1,2.86032]
[1721406881497,2.49310007,3497.2,3496.0,2.86041]
[1721406881700,2.49310007,3497.2,3495.5,3.23501561]
[1721406881701,2.4712,3497.2,3495.5,5.50978]
[1721406881902,2.4712,3497.2,3496.3,2.86013]
[1721406882111,1.19072,3497.1,3496.3,2.86013]
[1721406882537,7.47,3497.4,3495.8,5.32666]
[1721406882738,0.55,3497.3,3496.3,2.8601]
[1721406883030,0.55,3497.3,3496.3,2.86009]
[1721406883687,0.55,3497.3,3496.2,2.8602]
[1721406884030,0.55,3497.3,3496.3,2.8601]
[1721406884189,0.802,3497.2,3496.3,2.8601]
[1721406885306,0.802,3497.2,3496.1,2.8603]
[1721406885848,0.802,3497.2,3495.8,2.4661]
[1721406885849,0.802,3497.2,3496.0,2.86039]
[1721406886203,0.802,3497.2,3496.1,2.86031]
[1721406886402,0.802,3497.2,3496.2,2.86023]
[1721406886647,0.8822,3497.1,3496.3,2.86013]
[1721406887005,7.47,3497.4,3496.5,2.85993]
[1721406887239,7.47,3497.4,3496.2,2.86021]
[1721406887440,7.47,3497.4,3496.5,2.85994]
[1721406887643,7.47,3497.4,3496.6,2.8599]
[1721406887947,7.47,3497.4,3496.7,0.05719072]
[1721406888246,7.47,3497.4,3496.6,2.85988]
[1721406888405,7.47,3497.4,3496.6,3.431833]
[1721406888609,7.47,3497.4,3496.6,2.85984]
[1721406889000,7.47,3497.4,3496.0,2.86041]
[1721406889203,0.55,3497.3,3496.1,2.86032]
[1721406890037,0.55,3497.3,3496.0,2.86041]
[1721406890259,0.55,3497.3,3496.1,2.86028]
[1721406890458,3.2057,3497.2,3496.1,2.86028]
[1721406890817,0.02190007,3497.1,3495.5,5.86081]
[1721406891011,0.02190007,3497.1,3494.9,0.58601561]
[1721406891012,2.4037,3496.7,3495.1,2.86111]
[1721406891252,2.4037,3496.5,3494.6,3.147629]
[1721406891634,2.4037,3496.5,3494.8,2.86134]
[1721406891635,0.57190007,3496.4,3494.8,2.86134]
[1721406891823,0.29756001,3496.3,3494.8,3.4622369]
[1721406892025,2.4037,3496.1,3494.6,0.286149]
[1721406892229,2.649,3496.0,3494.2,2.86182]
[1721406892438,3.55,3495.9,3494.2,2.86182]
[1721406892858,3.55,3495.9,3494.5,2.86163]
[1721406893025,3.55,3495.9,3494.3,2.8618]
[1721406893765,3.55,3495.9,3494.1,2.86193]
[1721406893933,3.00410007,3495.8,3493.9,5.20471]
[1721406894137,0.55,3495.7,3494.0,2.86203]
[1721406894342,3.55,3495.7,3493.9,5.20471]
[1721406894564,3.55,3495.7,3494.1,2.8619]
[1721406895277,3.57190007,3495.7,3493.9,5.20471]
[1721406895485,0.82541001,3495.6,3494.0,3.382511]
[1721406895642,0.55,3495.5,3494.0,3.382511]
[1721406895827,0.55,3495.5,3494.2,2.86188]
[1721406896337,0.55,3495.5,3494.0,3.382461]
[1721406896535,0.43973101,3495.4,3494.1,2.86195]
[1721406896747,0.43973101,3495.4,3494.0,0.520471]
[1721406897149,3.0,3495.7,3494.1,0.05722754]
[1721406897349,2.3623,3495.8,3494.7,2.86144]
[1721406897535,2.3623,3495.8,3495.0,2.86114]
[1721406897947,2.3623,3495.8,3494.8,2.86139]
[1721406898167,2.3623,3495.8,3494.7,2.86145]
[1721406898328,0.23623,3495.7,3494.2,2.86186]
[1721406898667,0.23623,3495.7,3494.0,3.520471]
[1721406898668,0.23623,3495.7,3494.4,2.86164]
[1721406899325,0.23623,3495.7,3494.5,2.86163]
[1721406899523,2.3623,3495.8,3494.7,2.86141]
[1721406900468,2.3623,3495.8,3494.3,3.0]
[1721406900670,2.3623,3495.8,3495.0,2.86117]
[1721406901004,3.0,3496.2,3495.2,2.86105]
[1721406901341,0.02190007,3496.6,3495.0,2.86122]
[1721406901580,0.02190007,3496.6,3495.1,2.86113]
[1721406901581,0.93538954,3496.5,3495.1,2.86113]
[1721406901887,0.81063001,3496.5,3495.3,2.86091]
[1721406902068,0.55,3496.4,3495.3,2.86091]
[1721406902268,2.4354,3496.7,3495.3,2.86091]
[1721406902471,0.55,3496.6,3495.3,2.86091]
[1721406902653,2.4354,3496.7,3495.0,0.807778]
[1721406902654,2.4354,3496.7,3495.4,3.433103]
[1721406902988,2.4354,3496.7,3495.6,2.86073]
[1721406903384,2.4354,3496.7,3495.0,0.807778]
[1721406903555,2.649,3496.4,3495.0,2.86121]
[1721406903756,2.4354,3496.7,3495.1,0.05721126]
[1721406903978,2.4354,3496.7,3495.4,2.86087]
[1721406904147,2.4354,3496.7,3495.8,2.86051]
[1721406904682,9.9303,3497.2,3496.1,2.86031]
[1721406904861,9.9303,3497.2,3496.1,3.146351]
[1721406905043,9.9303,3497.2,3496.3,2.86009]
[1721406905249,9.9303,3497.2,3496.1,3.146351]
[1721406905557,0.02190007,3497.1,3495.2,5.3767]
[1721406905764,9.9303,3497.2,3495.1,2.86108]
[1721406905765,4.9939,3496.8,3495.1,2.86108]
[1721406906093,4.9939,3496.8,3495.0,2.86121]
[1721406906279,3.0,3496.7,3495.3,2.86098]
[1721406906446,3.0,3496.7,3494.7,11.0918]
[1721406906651,2.3449,3496.8,3495.7,2.86064]
[1721406907075,2.3449,3496.8,3495.3,2.86092]
[1721406907650,2.3449,3496.8,3495.7,2.86059]
[1721406908045,2.3449,3496.8,3496.1,2.86032]
[1721406908246,10.119,3497.2,3496.1,2.86032]
[1721406908247,9.8553,3497.2,3496.1,2.86032]
[1721406908498,9.8553,3497.2,3496.1,3.432392]
[1721406908660,9.8553,3497.2,3496.2,0.05719553]
[1721406908986,9.8553,3497.2,3496.6,2.85986]
[1721406908987,7.47,3497.2,3496.6,2.85986]
[1721406909150,7.47,3497.2,3495.8,3.017]
[1721406909486,7.47,3497.2,3496.3,2.86011]
[1721406909687,7.47,3497.2,3496.7,2.85982]
[1721406909847,7.47,3497.2,3496.7,3.431809]
[1721406910386,7.47,3497.2,3496.4,2.86005]
[1721406910772,7.47,3497.2,3496.5,2.85999]
[1721406911663,7.47,3497.2,3496.8,2.85975]
[1721406911863,2.3853,3497.7,3496.6,2.85987]
[1721406911864,9.8553,3497.7,3496.6,2.85987]
[1721406912403,9.8553,3497.7,3496.8,2.85975]
[1721406912555,9.8553,3497.7,3496.9,3.431612]
[1721406912879,9.8553,3497.7,3496.9,2.85965]
[1721406913255,9.8553,3497.7,3497.0,2.85958]
[1721406913457,9.8553,3497.7,3496.5,2.2555]
[1721406913458,9.8553,3497.7,3496.8,2.85969]
[1721406913875,9.8553,3497.7,3496.3,3.0]
[1721406913876,9.8553,3497.7,3496.6,2.85987]
[1721406914697,9.8553,3497.7,3496.3,2.86016]
[1721406914891,2.20453,3497.6,3496.6,2.85984]
[1721406915188,9.8553,3497.7,3496.0,2.2555]
[1721406915389,0.02190007,3497.6,3496.0,5.2555]
[1721406915596,0.02190007,3497.6,3496.4,2.86002]
[1721406915756,9.8553,3497.7,3496.4,2.86002]
[1721406915957,9.8553,3497.7,3496.5,0.572025]
[1721406915958,0.02190007,3497.6,3496.5,0.572025]
[1721406916155,11.42573,3497.7,3496.5,0.572025]
[1721406916356,0.02190007,3497.6,3496.5,0.572025]
[1721406916587,0.02190007,3497.6,3496.2,2.86023]
[1721406916750,0.02190007,3497.6,3496.4,2.86008]
[1721406917102,0.02190007,3497.6,3496.0,5.2555]
[1721406917103,5.649,3497.6,3496.2,2.86024]
[1721406917257,3.0,3497.6,3496.3,2.86015]
[1721406917453,3.0,3497.6,3496.4,2.86004]
[1721406917656,4.442573,3497.6,3496.4,0.572028]
[1721406917853,4.442573,3497.6,3496.1,2.86031]
[1721406918054,4.442573,3497.6,3496.2,2.86023]
[1721406918258,4.442573,3497.6,3496.4,2.86002]
[1721406918458,4.442573,3497.6,3496.2,2.86023]
[1721406918459,4.442573,3497.6,3496.2,5.72041]
[1721406918691,4.442573,3497.6,3496.4,2.86007]
[1721406918893,4.442573,3497.6,3496.4,0.572025]
[1721406919070,4.46447307,3497.6,3496.0,5.2555]
[1721406919268,4.46447307,3497.6,3496.1,2.86031]
[1721406919269,4.442573,3497.6,3496.1,2.86031]
[1721406919599,4.442573,3497.6,3496.4,2.86004]
[1721406919953,4.442573,3497.6,3496.4,2.86]
[1721406920158,3.0,3497.6,3496.7,2.85982]
[1721406920584,3.0,3497.6,3496.5,2.85999]
[1721406920894,3.0,3497.6,3496.7,2.85979]
[1721406921254,3.0,3497.6,3496.5,2.85993]
[1721406921468,7.47,3497.7,3496.8,2.85969]
[1721406921655,7.47,3497.7,3496.9,3.395209]
[1721406922198,7.47,3497.7,3497.0,2.85959]
[1721406923111,7.47,3497.7,3496.9,0.535589]
[1721406923112,7.47,3497.7,3496.9,3.395259]
[1721406923281,7.47,3497.7,3497.2,2.85937]
[1721406924409,7.47,3497.7,3496.9,0.535589]
[1721406924625,0.2,3498.0,3496.9,0.535589]
[1721406924626,0.2,3498.0,3497.4,2.4453]
[1721406924777,0.2,3498.0,3497.0,0.87417656]
[1721406924778,1.145418,3500.1,3498.7,2.85815]
[1721406924977,2.2733,3500.9,3497.6,5.87609]
[1721406924978,2.2733,3500.9,3498.6,2.85825]
[1721406925170,2.2733,3500.7,3498.8,2.85811]
[1721406925768,0.02190007,3500.6,3498.4,2.85842]
[1721406926139,2.2733,3500.4,3498.6,2.85822]
[1721406926318,0.02190007,3500.3,3498.5,3.953582]
[1721406926479,3.02190007,3500.3,3498.5,1.095272]
[1721406926681,2.2733,3500.4,3498.5,3.953632]
[1721406926682,0.02190007,3500.2,3498.5,3.953632]
[1721406927021,2.2733,3500.1,3498.5,3.953632]
[1721406927176,0.52952001,3500.0,3498.6,0.6602632]
[1721406927378,3.52952001,3500.0,3498.6,0.6602632]
[1721406927712,3.55142008,3500.0,3498.6,0.6602632]
[1721406927876,3.52952001,3500.0,3498.6,0.6602632]
[1721406928270,3.52952001,3500.0,3498.7,2.8582]
[1721406928500,3.52952001,3500.0,3498.8,0.63768232]
[1721406929297,2.2733,3500.1,3499.1,2.85787]
[1721406930511,2.2733,3500.1,3498.8,3.49580232]
[1721406930697,2.2733,3500.1,3498.9,2.85803]
[1721406931036,2.2733,3500.1,3498.1,3.0]
[1721406931317,0.02190007,3500.0,3498.1,2.85863]
[1721406931621,0.24923007,3500.0,3498.2,4.081176]
[1721406931808,3.24923007,3500.0,3498.2,4.081176]
[1721406932196,3.24923007,3500.0,3498.3,0.07495577]
[1721406932610,3.24923007,3500.0,3498.3,2.93347577]
[1721406932611,3.22733,3500.0,3498.3,2.93347577]
[1721406932931,0.57415308,3499.9,3498.4,0.70146518]
[1721406933089,0.57415308,3499.9,3498.3,0.07495577]
[1721406933284,0.55225301,3499.9,3498.5,0.07469763]
[1721406933593,0.55225301,3499.9,3498.4,2.93314994]
[1721406933794,0.02190007,3499.8,3498.6,0.07473853]
[1721406934007,0.57415308,3499.9,3498.5,0.07475635]
[1721406934210,0.60747831,3499.8,3498.7,0.07473494]
[1721406934415,0.60747831,3499.8,3498.6,0.07474564]
[1721406934587,0.60747831,3499.8,3498.8,0.07472423]
[1721406934789,0.60747831,3499.8,3498.7,0.07473494]
[1721406935023,0.60747831,3499.8,3498.9,0.07471353]
[1721406935326,0.40757091,3499.7,3498.2,1.081176]
[1721406935621,2.4017,3499.6,3497.8,2.85892]
[1721406935830,0.02190007,3499.5,3498.3,0.07476709]
[1721406935978,0.28092709,3499.4,3497.8,2.85892]
[1721406936183,0.02190007,3499.3,3497.8,2.85892]
[1721406936384,0.30282716,3499.4,3497.9,0.07480992]
[1721406936924,2.2765,3499.3,3497.9,0.07480992]
[1721406937138,0.02190007,3499.2,3497.5,5.50813]
[1721406937318,0.27983279,3499.2,3498.0,0.07479921]
[1721406937536,3.27983279,3499.2,3497.6,0.785423]
[1721406937715,3.27983279,3499.2,3498.1,0.0747885]
[1721406937915,3.27983279,3499.2,3497.6,0.785423]
[1721406938126,0.55563328,3499.1,3498.2,0.07477779]
[1721406938351,0.55563328,3499.1,3497.7,0.5990653]
[1721406938352,0.02190007,3499.0,3497.7,0.5990653]
[1721406938646,0.57753335,3499.1,3498.3,0.07476709]
[1721406938837,0.57753335,3499.1,3496.9,2.3812]
[1721406938838,6.30519661,3499.0,3496.9,2.3812]
[1721406939150,6.30519661,3499.0,3497.1,0.07241888]
[1721406939151,3.0,3498.9,3497.1,0.07241888]
[1721406939451,3.0,3498.9,3497.1,2.93191888]
[1721406939610,1.07700327,3499.0,3497.1,0.07241888]
[1721406939807,0.48905693,3498.9,3497.2,0.56373854]
[1721406940050,0.55,3498.8,3497.1,0.07241888]
[1721406943309,3.55,3498.6,3497.4,0.06999327]
[1721406943550,0.60095693,3498.5,3496.8,2.85971]
[1721406943713,0.60095693,3498.5,3497.5,0.06998256]
[1721406944044,0.60095693,3498.5,3496.4,2.3812]
[1721406944245,2.4555,3498.3,3496.4,8.24123]
[1721406944413,0.55,3498.2,3496.4,2.3812]
[1721406944747,2.4555,3498.0,3496.5,0.87310972]
[1721406944965,2.4555,3497.8,3496.5,0.07008972]
[1721406945113,2.649,3497.5,3495.4,2.47]
[1721406945313,2.649,3497.5,3496.6,0.06572187]
[1721406945314,2.4555,3497.4,3496.6,0.06572187]
[1721406945556,5.4555,3497.4,3495.5,2.86081]
[1721406945747,0.55,3497.3,3495.5,2.86081]
[1721406945931,0.55,3497.3,3495.6,0.88500008]
[1721406945932,0.86545,3497.2,3495.6,0.88500008]
[1721406946535,2.3696,3497.1,3495.6,0.06582908]
[1721406946843,2.3696,3497.1,3495.0,5.19632]
[1721406946844,5.3696,3497.1,3495.0,5.19632]
[1721406947156,5.3696,3497.1,3494.7,2.86141]
[1721406947157,2.3696,3496.9,3494.7,2.86141]
[1721406947368,1.7,3496.7,3495.1,0.06588271]
[1721406947566,2.8926,3496.6,3494.8,0.0659149]
[1721406947868,0.55,3496.5,3494.3,2.86178]
[1721406948032,3.55,3496.5,3494.4,2.86171]
[1721406948234,3.55,3496.5,3494.4,0.06595782]
[1721406948441,3.0,3496.5,3494.8,2.86139]
[1721406948656,3.75926,3496.5,3494.9,0.286139]
[1721406949014,3.0,3496.5,3495.0,2.41139344]
[1721406949328,2.85,3497.0,3495.0,2.41139344]
[1721406949329,7.47,3496.8,3495.7,2.8606]
[1721406949514,7.47,3496.8,3495.3,2.86094]
[1721406949717,7.47,3496.8,3495.8,0.06580764]
[1721406949956,7.47,3496.8,3495.0,5.8755]
[1721406950255,7.47,3496.8,3495.7,2.86065]
[1721406950557,7.47,3496.8,3495.8,0.06577933]
[1721406951062,3.0,3496.7,3495.4,2.8609]
[1721406951565,3.0,3496.7,3495.5,0.0658115]
[1721406951745,3.0,3496.7,3495.9,2.86049]
[1721406951949,3.0,3496.7,3495.7,2.86065]
[1721406951950,3.0,3496.7,3496.0,3.432514]
[1721406952243,3.0,3496.7,3496.0,0.63787189]
[1721406952724,3.0,3496.7,3496.0,0.06575789]
[1721406953054,3.0,3496.7,3495.4,2.86084]
[1721406953418,3.0,3496.7,3495.5,0.0658115]
[1721406953761,3.0,3496.7,3495.7,2.86058]
[1721406953914,3.0,3496.7,3495.6,0.06580078]
[1721406954117,3.0,3496.7,3495.8,0.06577933]
[1721406954418,3.0,3496.7,3495.9,0.06576861]
[1721406954614,3.0,3496.7,3495.6,0.29266308]
[1721406954954,3.0,3496.7,3495.7,2.92643005]
[1721406955155,3.0,3496.7,3495.7,0.06579005]
[1721406955361,3.0,3496.7,3495.8,0.32192731]
[1721406955722,3.0,3496.7,3495.9,0.06598418]
[1721406955913,7.47,3496.8,3495.9,2.92647418]
[1721406956118,7.47,3496.8,3496.1,2.86027]
[1721406956477,7.47,3496.8,3495.9,2.92647418]
[1721406956617,7.47,3496.8,3496.2,0.06595201]
[1721406956818,7.47,3496.8,3496.0,0.32484015]
[1721406957050,7.47,3496.8,3496.3,0.06594129]
[1721406957214,7.47,3496.8,3495.8,0.32192731]
[1721406957552,7.47,3496.8,3495.9,0.06598418]